[Event "Titled Tuesday Blitz June 27 Early 2023"]
[White "Samadov, Read"]
[Black "Preotu, Razvan"]
[WhiteFideId "13417444"]
[BlackFideId "2613280"]
[WhiteElo "2877"]
[BlackElo "2698"]
[Result "0-1"]
[Round "3"]
[TimeControl "180+2"]
[Date "2023.06.27"]
[WhiteClock "0:00:08"]
[BlackClock "0:00:13"]
[Board "34"]

1. d4 {[%clk 0:03:00]}  Nf6 {[%clk 0:02:54]} 2. c4 {[%clk 0:03:01]}  g6 {[%clk 0:02:55]} 3. Nc3 {[%clk 0:03:01]}  d5 {[%clk 0:02:56]} 4. cxd5 {[%clk 0:03:00]}  Nxd5 {[%clk 0:02:57]} 5. e4 {[%clk 0:03:01]}  Nxc3 {[%clk 0:02:57]} 6. bxc3 {[%clk 0:03:02]}  Bg7 {[%clk 0:02:58]} 7. Bc4 {[%clk 0:03:03]}  c5 {[%clk 0:02:58]} 8. Ne2 {[%clk 0:03:03]}  Nc6 {[%clk 0:02:58]} 9. Be3 {[%clk 0:03:04]}  O-O {[%clk 0:02:58]} 10. O-O {[%clk 0:03:02]}  b6 {[%clk 0:02:56]} 11. h4 {[%clk 0:03:01]}  e5 {[%clk 0:02:41]} 12. Bd5 {[%clk 0:02:57]}  Bb7 {[%clk 0:02:36]} 13. dxc5 {[%clk 0:02:55]}  Qxh4 {[%clk 0:02:29]} 14. cxb6 {[%clk 0:02:46]}  axb6 {[%clk 0:02:22]} 15. Bxb6 {[%clk 0:02:46]}  Rac8 {[%clk 0:01:34]} 16. a4 {[%clk 0:02:43]}  Ba6 {[%clk 0:01:34]} 17. Re1 {[%clk 0:02:37]}  Ne7 {[%clk 0:01:33]} 18. c4 {[%clk 0:02:06]}  Nxd5 {[%clk 0:01:31]} 19. cxd5 {[%clk 0:02:00]}  Qxe4 {[%clk 0:01:31]} 20. d6 {[%clk 0:01:57]}  Bb7 {[%clk 0:00:50]} 21. f3 {[%clk 0:01:55]}  Qh4 {[%clk 0:00:39]} 22. d7 {[%clk 0:01:51]}  Ra8 {[%clk 0:00:37]} 23. Rc1 {[%clk 0:01:39]}  e4 {[%clk 0:00:37]} 24. f4 {[%clk 0:01:26]}  e3 {[%clk 0:00:37]} 25. Bxe3 {[%clk 0:00:45]}  Qg4 {[%clk 0:00:37]} 26. Ng3 {[%clk 0:00:42]}  Qxg3 {[%clk 0:00:38]} 27. Qd2 {[%clk 0:00:39]}  Rfd8 {[%clk 0:00:33]} 28. Rc2 {[%clk 0:00:34]}  Rxd7 {[%clk 0:00:30]} 29. Qe2 {[%clk 0:00:27]}  Bxg2 {[%clk 0:00:26]} 30. Bf2 {[%clk 0:00:24]}  Qh3 {[%clk 0:00:26]} 31. Bc5 {[%clk 0:00:18]}  Bf3 {[%clk 0:00:19]} 32. Qh2 {[%clk 0:00:15]}  Qg4+ {[%clk 0:00:19]} 33. Kf2 {[%clk 0:00:16]}  Rad8 {[%clk 0:00:16]} 34. Be3 {[%clk 0:00:14]}  Bd4 {[%clk 0:00:14]} 35. Qh6 {[%clk 0:00:08]}  Qg2# {[%clk 0:00:13]} 0-1


[Site "https://www.chess.com"]

[Event "Titled Tuesday Blitz June 27 Early 2023"]
[White "Goryachkina, Aleksandra"]
[Black "Ibarra Jerez, Jose Carlos"]
[WhiteFideId "4147103"]
[BlackFideId "2226332"]
[WhiteElo "2691"]
[BlackElo "2875"]
[Result "0-1"]
[Round "3"]
[TimeControl "180+2"]
[Date "2023.06.27"]
[WhiteClock "0:00:00"]
[BlackClock "0:00:18"]
[Board "35"]

1. e4 {[%clk 0:02:59]}  Nc6 {[%clk 0:02:59]} 2. Nc3 {[%clk 0:02:58]}  e6 {[%clk 0:02:58]} 3. Nf3 {[%clk 0:02:57]}  d5 {[%clk 0:02:58]} 4. exd5 {[%clk 0:02:57]}  exd5 {[%clk 0:02:58]} 5. d4 {[%clk 0:02:57]}  Bb4 {[%clk 0:02:57]} 6. Bd3 {[%clk 0:02:53]}  Bg4 {[%clk 0:02:55]} 7. Be3 {[%clk 0:02:43]}  Nge7 {[%clk 0:02:53]} 8. h3 {[%clk 0:02:41]}  Bf5 {[%clk 0:02:52]} 9. O-O {[%clk 0:02:40]}  O-O {[%clk 0:02:51]} 10. Ne2 {[%clk 0:02:39]}  Bd6 {[%clk 0:02:42]} 11. Ng3 {[%clk 0:02:07]}  Bxg3 {[%clk 0:02:31]} 12. fxg3 {[%clk 0:02:07]}  Nb4 {[%clk 0:02:31]} 13. Bxf5 {[%clk 0:01:57]}  Nxf5 {[%clk 0:02:31]} 14. Bf4 {[%clk 0:01:53]}  f6 {[%clk 0:02:26]} 15. c3 {[%clk 0:01:50]}  Nc6 {[%clk 0:02:24]} 16. g4 {[%clk 0:01:48]}  Nd6 {[%clk 0:02:24]} 17. Bxd6 {[%clk 0:01:33]}  Qxd6 {[%clk 0:02:22]} 18. Qd2 {[%clk 0:01:33]}  Rae8 {[%clk 0:02:17]} 19. Rae1 {[%clk 0:01:32]}  g5 {[%clk 0:02:03]} 20. Rxe8 {[%clk 0:01:16]}  Rxe8 {[%clk 0:02:01]} 21. Ne1 {[%clk 0:01:08]}  Kg7 {[%clk 0:01:50]} 22. Nc2 {[%clk 0:01:03]}  Re4 {[%clk 0:01:47]} 23. Ne3 {[%clk 0:00:46]}  Ne7 {[%clk 0:01:47]} 24. Rf3 {[%clk 0:00:46]}  Qe6 {[%clk 0:01:45]} 25. Qf2 {[%clk 0:00:45]}  c6 {[%clk 0:01:44]} 26. Qg3 {[%clk 0:00:40]}  Kf7 {[%clk 0:01:34]} 27. Qf2 {[%clk 0:00:34]}  Ng6 {[%clk 0:01:27]} 28. g3 {[%clk 0:00:31]}  Ne7 {[%clk 0:01:26]} 29. Qd2 {[%clk 0:00:21]}  b6 {[%clk 0:01:13]} 30. Nf1 {[%clk 0:00:18]}  h5 {[%clk 0:01:01]} 31. Qxg5 {[%clk 0:00:10]}  hxg4 {[%clk 0:01:01]} 32. Qh5+ {[%clk 0:00:10]}  Kf8 {[%clk 0:01:01]} 33. Qh6+ {[%clk 0:00:09]}  Kf7 {[%clk 0:01:02]} 34. Qh7+ {[%clk 0:00:07]}  Ke8 {[%clk 0:01:02]} 35. Qh8+ {[%clk 0:00:07]}  Ng8 {[%clk 0:01:01]} 36. hxg4 {[%clk 0:00:05]}  Qxg4 {[%clk 0:01:01]} 37. Rf2 {[%clk 0:00:02]}  Kd7 {[%clk 0:00:51]} 38. Qh7+ {[%clk 0:00:02]}  Re7 {[%clk 0:00:46]} 39. Qf5+ {[%clk 0:00:03]}  Qxf5 {[%clk 0:00:46]} 40. Rxf5 {[%clk 0:00:04]}  Ke6 {[%clk 0:00:44]} 41. Rf3 {[%clk 0:00:03]}  Rc7 {[%clk 0:00:43]} 42. Re3+ {[%clk 0:00:04]}  Kf7 {[%clk 0:00:43]} 43. Kf2 {[%clk 0:00:04]}  Nh6 {[%clk 0:00:43]} 44. Ke2 {[%clk 0:00:05]}  Nf5 {[%clk 0:00:39]} 45. Rf3 {[%clk 0:00:05]}  Nd6 {[%clk 0:00:39]} 46. Nd2 {[%clk 0:00:04]}  c5 {[%clk 0:00:37]} 47. dxc5 {[%clk 0:00:04]}  bxc5 {[%clk 0:00:37]} 48. b3 {[%clk 0:00:04]}  Ke6 {[%clk 0:00:31]} 49. c4 {[%clk 0:00:04]}  d4 {[%clk 0:00:29]} 50. Rf1 {[%clk 0:00:03]}  Rh7 {[%clk 0:00:28]} 51. Kd3 {[%clk 0:00:03]}  Nf7 {[%clk 0:00:27]} 52. Nf3 {[%clk 0:00:03]}  Rh3 {[%clk 0:00:26]} 53. Rg1 {[%clk 0:00:03]}  Ne5+ {[%clk 0:00:19]} 54. Nxe5 {[%clk 0:00:03]}  fxe5 {[%clk 0:00:20]} 55. Ke4 {[%clk 0:00:03]}  Rh2 {[%clk 0:00:20]} 56. g4 {[%clk 0:00:03]}  Rf2 {[%clk 0:00:17]} 57. g5 {[%clk 0:00:02]}  Rf4+ {[%clk 0:00:17]} 58. Kd3 {[%clk 0:00:02]}  e4+ {[%clk 0:00:18]} 59. Ke2 {[%clk 0:00:03]}  Kf7 {[%clk 0:00:17]} 60. g6+ {[%clk 0:00:02]}  Kg7 {[%clk 0:00:18]} 61. Rg5 {[%clk 0:00:02]}  e3 {[%clk 0:00:18]} 62. Rxc5 {[%clk 0:00:02]}  Rf2+ {[%clk 0:00:19]} 63. Kd3 {[%clk 0:00:01]}  Rd2+ {[%clk 0:00:19]} 64. Ke4 {[%clk 0:00:02]}  e2 {[%clk 0:00:19]} 65. Kf5 {[%clk 0:00:01]}  e1=Q {[%clk 0:00:17]} 66. Rc7+ {[%clk 0:00:01]}  Kf8 {[%clk 0:00:17]} 67. Rc8+ {[%clk 0:00:00]}  Ke7 {[%clk 0:00:18]} 0-1


[Site "https://www.chess.com"]

[Event "Titled Tuesday Blitz June 27 Early 2023"]
[White "Rakhmanov, Aleksandr"]
[Black "Eugene, Floryan"]
[WhiteFideId "4173708"]
[BlackFideId "20694784"]
[WhiteElo "2867"]
[BlackElo "2656"]
[Result "1/2-1/2"]
[Round "3"]
[TimeControl "180+2"]
[Date "2023.06.27"]
[WhiteClock "0:00:13"]
[BlackClock "0:00:22"]
[Board "37"]

1. d4 {[%clk 0:02:54]}  f5 {[%clk 0:02:59]} 2. Bf4 {[%clk 0:02:53]}  Nf6 {[%clk 0:02:57]} 3. e3 {[%clk 0:02:53]}  d6 {[%clk 0:02:56]} 4. Nc3 {[%clk 0:02:50]}  e6 {[%clk 0:02:54]} 5. Bc4 {[%clk 0:02:49]}  Be7 {[%clk 0:02:51]} 6. Nf3 {[%clk 0:02:47]}  h6 {[%clk 0:02:49]} 7. h3 {[%clk 0:02:45]}  O-O {[%clk 0:02:46]} 8. O-O {[%clk 0:02:41]}  Re8 {[%clk 0:02:37]} 9. Bh2 {[%clk 0:02:30]}  Bf8 {[%clk 0:02:33]} 10. a4 {[%clk 0:02:28]}  Nc6 {[%clk 0:02:32]} 11. a5 {[%clk 0:02:27]}  Kh8 {[%clk 0:02:20]} 12. a6 {[%clk 0:02:22]}  bxa6 {[%clk 0:02:06]} 13. d5 {[%clk 0:02:12]}  exd5 {[%clk 0:01:59]} 14. Nxd5 {[%clk 0:02:12]}  Ne5 {[%clk 0:01:56]} 15. Nxe5 {[%clk 0:01:57]}  dxe5 {[%clk 0:01:57]} 16. Nxf6 {[%clk 0:01:55]}  Qxf6 {[%clk 0:01:55]} 17. Qe2 {[%clk 0:01:42]}  Rb8 {[%clk 0:01:52]} 18. b3 {[%clk 0:01:41]}  Rb6 {[%clk 0:01:51]} 19. Rfd1 {[%clk 0:01:40]}  Bd6 {[%clk 0:01:48]} 20. Ra5 {[%clk 0:01:39]}  Bb7 {[%clk 0:01:45]} 21. Qh5 {[%clk 0:01:38]}  Rf8 {[%clk 0:01:17]} 22. Bg3 {[%clk 0:01:34]}  Kh7 {[%clk 0:01:14]} 23. Bh4 {[%clk 0:01:31]}  Qg6 {[%clk 0:01:14]} 24. Qxg6+ {[%clk 0:01:31]}  Kxg6 {[%clk 0:01:15]} 25. Bg3 {[%clk 0:01:31]}  f4 {[%clk 0:01:07]} 26. exf4 {[%clk 0:01:26]}  exf4 {[%clk 0:01:07]} 27. Bd3+ {[%clk 0:01:26]}  Kf7 {[%clk 0:01:06]} 28. Rf5+ {[%clk 0:01:11]}  Kg8 {[%clk 0:00:59]} 29. Bc4+ {[%clk 0:01:10]}  Kh7 {[%clk 0:00:57]} 30. Rxf8 {[%clk 0:01:04]}  Bxf8 {[%clk 0:00:52]} 31. Bxf4 {[%clk 0:00:57]}  Bd6 {[%clk 0:00:52]} 32. Be3 {[%clk 0:00:55]}  c5 {[%clk 0:00:45]} 33. f4 {[%clk 0:00:39]}  Be4 {[%clk 0:00:41]} 34. Rd2 {[%clk 0:00:38]}  a5 {[%clk 0:00:41]} 35. Kf2 {[%clk 0:00:37]}  Be7 {[%clk 0:00:33]} 36. Rd7 {[%clk 0:00:28]}  Bf6 {[%clk 0:00:32]} 37. Bd3 {[%clk 0:00:14]}  Bxd3 {[%clk 0:00:31]} 38. Rxd3 {[%clk 0:00:15]}  Rc6 {[%clk 0:00:26]} 39. Rd5 {[%clk 0:00:13]}  c4 {[%clk 0:00:26]} 40. Rxa5 {[%clk 0:00:12]}  cxb3 {[%clk 0:00:27]} 41. cxb3 {[%clk 0:00:13]}  Rc2+ {[%clk 0:00:27]} 42. Kf3 {[%clk 0:00:13]}  Rc3 {[%clk 0:00:27]} 43. Ke4 {[%clk 0:00:11]}  Rxb3 {[%clk 0:00:25]} 44. g4 {[%clk 0:00:11]}  Bd8 {[%clk 0:00:24]} 45. Ra6 {[%clk 0:00:06]}  Rb4+ {[%clk 0:00:23]} 46. Kf3 {[%clk 0:00:06]}  Rb3 {[%clk 0:00:24]} 47. Ke2 {[%clk 0:00:05]}  Rb2+ {[%clk 0:00:24]} 48. Kf3 {[%clk 0:00:04]}  Rb3 {[%clk 0:00:24]} 49. Ke4 {[%clk 0:00:05]}  Rb4+ {[%clk 0:00:24]} 50. Kd5 {[%clk 0:00:05]}  Rb3 {[%clk 0:00:24]} 51. Bd4 {[%clk 0:00:05]}  Bb6 {[%clk 0:00:23]} 52. Bxb6 {[%clk 0:00:05]}  axb6 {[%clk 0:00:24]} 53. h4 {[%clk 0:00:05]}  Rg3 {[%clk 0:00:23]} 54. g5 {[%clk 0:00:05]}  Rg4 {[%clk 0:00:23]} 55. Ke5 {[%clk 0:00:04]}  Rxh4 {[%clk 0:00:23]} 56. Rxb6 {[%clk 0:00:05]}  hxg5 {[%clk 0:00:23]} 57. fxg5 {[%clk 0:00:06]}  Rh1 {[%clk 0:00:22]} 58. Kf5 {[%clk 0:00:05]}  Rf1+ {[%clk 0:00:22]} 59. Kg4 {[%clk 0:00:06]}  Rg1+ {[%clk 0:00:23]} 60. Kh4 {[%clk 0:00:06]}  Rh1+ {[%clk 0:00:23]} 61. Kg4 {[%clk 0:00:07]}  Rg1+ {[%clk 0:00:22]} 62. Kh4 {[%clk 0:00:08]}  Rg2 {[%clk 0:00:23]} 63. Kh5 {[%clk 0:00:07]}  g6+ {[%clk 0:00:21]} 64. Kh4 {[%clk 0:00:06]}  Rh2+ {[%clk 0:00:21]} 65. Kg4 {[%clk 0:00:06]}  Rg2+ {[%clk 0:00:22]} 66. Kf4 {[%clk 0:00:07]}  Rf2+ {[%clk 0:00:22]} 67. Kg3 {[%clk 0:00:07]}  Rf5 {[%clk 0:00:22]} 68. Kg4 {[%clk 0:00:08]}  Rf1 {[%clk 0:00:22]} 69. Rb7+ {[%clk 0:00:08]}  Kg8 {[%clk 0:00:22]} 70. Re7 {[%clk 0:00:08]}  Rg1+ {[%clk 0:00:21]} 71. Kf4 {[%clk 0:00:08]}  Rf1+ {[%clk 0:00:22]} 72. Kg4 {[%clk 0:00:09]}  Rg1+ {[%clk 0:00:22]} 73. Kh4 {[%clk 0:00:10]}  Rh1+ {[%clk 0:00:23]} 74. Kg3 {[%clk 0:00:10]}  Rg1+ {[%clk 0:00:23]} 75. Kf4 {[%clk 0:00:11]}  Rf1+ {[%clk 0:00:24]} 76. Ke5 {[%clk 0:00:11]}  Rf5+ {[%clk 0:00:24]} 77. Ke6 {[%clk 0:00:11]}  Rxg5 {[%clk 0:00:23]} 78. Kf6 {[%clk 0:00:12]}  Rf5+ {[%clk 0:00:20]} 79. Kxg6 {[%clk 0:00:12]}  Rf8 {[%clk 0:00:21]} 80. Rg7+ {[%clk 0:00:08]}  Kh8 {[%clk 0:00:21]} 81. Rh7+ {[%clk 0:00:09]}  Kg8 {[%clk 0:00:21]} 82. Re7 {[%clk 0:00:09]}  Ra8 {[%clk 0:00:21]} 83. Rg7+ {[%clk 0:00:10]}  Kh8 {[%clk 0:00:21]} 84. Rh7+ {[%clk 0:00:11]}  Kg8 {[%clk 0:00:21]} 85. Rg7+ {[%clk 0:00:12]}  Kh8 {[%clk 0:00:22]} 86. Rh7+ {[%clk 0:00:12]}  Kg8 {[%clk 0:00:22]} 87. Rg7+ {[%clk 0:00:13]} 1/2-1/2


[Site "https://www.chess.com"]

[Event "Titled Tuesday Blitz June 27 Early 2023"]
[White "Molina, Roberto Junio Brito"]
[Black "Sadykov, Ramil"]
[WhiteFideId "2109450"]
[BlackFideId "24113590"]
[WhiteElo "2862"]
[BlackElo "2643"]
[Result "0-1"]
[Round "3"]
[TimeControl "180+2"]
[Date "2023.06.27"]
[WhiteClock "0:00:41"]
[BlackClock "0:00:50"]
[Board "39"]

1. d4 {[%clk 0:03:00]}  d5 {[%clk 0:02:59]} 2. c4 {[%clk 0:02:58]}  e6 {[%clk 0:02:58]} 3. Nc3 {[%clk 0:02:58]}  Nf6 {[%clk 0:02:58]} 4. cxd5 {[%clk 0:02:58]}  exd5 {[%clk 0:02:59]} 5. Bg5 {[%clk 0:02:58]}  Be7 {[%clk 0:02:58]} 6. e3 {[%clk 0:02:58]}  O-O {[%clk 0:02:58]} 7. Bd3 {[%clk 0:02:57]}  Re8 {[%clk 0:02:58]} 8. Qc2 {[%clk 0:02:57]}  h6 {[%clk 0:02:57]} 9. Bh4 {[%clk 0:02:57]}  c5 {[%clk 0:02:58]} 10. Nge2 {[%clk 0:02:55]}  Nc6 {[%clk 0:02:56]} 11. dxc5 {[%clk 0:02:51]}  d4 {[%clk 0:02:56]} 12. exd4 {[%clk 0:02:47]}  Nxd4 {[%clk 0:02:55]} 13. Nxd4 {[%clk 0:02:46]}  Qxd4 {[%clk 0:02:51]} 14. Bg3 {[%clk 0:02:47]}  Bxc5+ {[%clk 0:02:40]} 15. Ne2 {[%clk 0:02:45]}  Bb4+ {[%clk 0:02:32]} 16. Kf1 {[%clk 0:02:45]}  Qb6 {[%clk 0:02:23]} 17. Bc7 {[%clk 0:02:36]}  Qe6 {[%clk 0:02:17]} 18. a3 {[%clk 0:02:31]}  Bd6 {[%clk 0:02:13]} 19. Bc4 {[%clk 0:02:25]}  Qe7 {[%clk 0:02:05]} 20. Bxd6 {[%clk 0:02:24]}  Qxd6 {[%clk 0:02:06]} 21. Rd1 {[%clk 0:02:23]}  Qc6 {[%clk 0:01:58]} 22. Qb3 {[%clk 0:02:20]}  Be6 {[%clk 0:01:43]} 23. Bxe6 {[%clk 0:02:17]}  Rxe6 {[%clk 0:01:43]} 24. Qf3 {[%clk 0:01:11]}  Qb5 {[%clk 0:01:35]} 25. Rd2 {[%clk 0:01:04]}  Rae8 {[%clk 0:01:31]} 26. h4 {[%clk 0:01:00]}  Ne4 {[%clk 0:01:14]} 27. Rc2 {[%clk 0:00:56]}  Rf6 {[%clk 0:00:53]} 28. Qe3 {[%clk 0:00:45]}  Nxf2 {[%clk 0:00:49]} 29. Qxf2 {[%clk 0:00:43]}  Rxf2+ {[%clk 0:00:50]} 30. Kxf2 {[%clk 0:00:41]}  Qf5+ {[%clk 0:00:50]} 0-1


[Site "https://www.chess.com"]

[Event "Titled Tuesday Blitz June 27 Early 2023"]
[White "Zochowski, Kacper"]
[Black "Maximov, Dmitry"]
[WhiteFideId "1125494"]
[BlackFideId "14105659"]
[WhiteElo "2643"]
[BlackElo "2851"]
[Result "1-0"]
[Round "3"]
[TimeControl "180+2"]
[Date "2023.06.27"]
[WhiteClock "0:00:24"]
[BlackClock "0:00:00"]
[Board "40"]

1. Nf3 {[%clk 0:03:00]}  Nf6 {[%clk 0:02:49]} 2. c4 {[%clk 0:03:00]}  g6 {[%clk 0:02:49]} 3. b3 {[%clk 0:03:01]}  Bg7 {[%clk 0:02:49]} 4. Bb2 {[%clk 0:03:01]}  O-O {[%clk 0:02:50]} 5. g3 {[%clk 0:03:01]}  d6 {[%clk 0:02:50]} 6. d4 {[%clk 0:03:02]}  Nbd7 {[%clk 0:02:50]} 7. Bg2 {[%clk 0:03:02]}  Qe8 {[%clk 0:02:48]} 8. O-O {[%clk 0:03:02]}  c6 {[%clk 0:02:46]} 9. Nc3 {[%clk 0:03:02]}  a6 {[%clk 0:02:45]} 10. e3 {[%clk 0:03:02]}  Rb8 {[%clk 0:02:42]} 11. a4 {[%clk 0:03:01]}  b6 {[%clk 0:02:41]} 12. e4 {[%clk 0:02:32]}  e5 {[%clk 0:02:39]} 13. dxe5 {[%clk 0:02:27]}  dxe5 {[%clk 0:02:37]} 14. Ba3 {[%clk 0:02:28]}  c5 {[%clk 0:02:35]} 15. Qc2 {[%clk 0:02:21]}  Bb7 {[%clk 0:02:29]} 16. Nd5 {[%clk 0:02:22]}  Bxd5 {[%clk 0:02:26]} 17. exd5 {[%clk 0:02:22]}  Qe7 {[%clk 0:02:19]} 18. Rad1 {[%clk 0:02:22]}  Qd6 {[%clk 0:02:19]} 19. Rfe1 {[%clk 0:02:11]}  Rbe8 {[%clk 0:02:19]} 20. a5 {[%clk 0:02:11]}  bxa5 {[%clk 0:02:18]} 21. Qc3 {[%clk 0:02:11]}  e4 {[%clk 0:02:14]} 22. Ng5 {[%clk 0:02:04]}  h6 {[%clk 0:02:13]} 23. Nh3 {[%clk 0:01:57]}  e3 {[%clk 0:02:12]} 24. Qxa5 {[%clk 0:01:51]}  Ng4 {[%clk 0:02:04]} 25. f3 {[%clk 0:01:43]}  Ngf6 {[%clk 0:01:36]} 26. Bc1 {[%clk 0:01:35]}  e2 {[%clk 0:01:32]} 27. Rd2 {[%clk 0:01:36]}  Nh5 {[%clk 0:01:27]} 28. Rdxe2 {[%clk 0:01:33]}  Bd4+ {[%clk 0:01:27]} 29. Nf2 {[%clk 0:01:31]}  Ne5 {[%clk 0:01:19]} 30. Bxh6 {[%clk 0:01:22]}  Nd3 {[%clk 0:01:12]} 31. Bxf8 {[%clk 0:01:22]}  Rxf8 {[%clk 0:01:10]} 32. Kf1 {[%clk 0:01:18]}  Nxf2 {[%clk 0:01:02]} 33. Rxf2 {[%clk 0:01:18]}  Bxf2 {[%clk 0:00:55]} 34. Kxf2 {[%clk 0:01:19]}  Ng7 {[%clk 0:00:53]} 35. Bh3 {[%clk 0:01:18]}  Rb8 {[%clk 0:00:50]} 36. Qc3 {[%clk 0:01:17]}  a5 {[%clk 0:00:48]} 37. Re3 {[%clk 0:01:15]}  Rb4 {[%clk 0:00:47]} 38. f4 {[%clk 0:01:05]}  a4 {[%clk 0:00:45]} 39. bxa4 {[%clk 0:01:05]}  Rxa4 {[%clk 0:00:45]} 40. Qe5 {[%clk 0:00:50]}  Qb6 {[%clk 0:00:42]} 41. d6 {[%clk 0:00:47]}  Rxc4 {[%clk 0:00:39]} 42. d7 {[%clk 0:00:47]}  Rd4 {[%clk 0:00:39]} 43. Re2 {[%clk 0:00:36]}  Kh7 {[%clk 0:00:37]} 44. Bg4 {[%clk 0:00:36]}  f5 {[%clk 0:00:36]} 45. Bf3 {[%clk 0:00:36]}  Rxd7 {[%clk 0:00:36]} 46. h4 {[%clk 0:00:36]}  c4+ {[%clk 0:00:35]} 47. Kg2 {[%clk 0:00:37]}  Rd3 {[%clk 0:00:33]} 48. h5 {[%clk 0:00:37]}  c3 {[%clk 0:00:32]} 49. hxg6+ {[%clk 0:00:37]}  Qxg6 {[%clk 0:00:32]} 50. Qb5 {[%clk 0:00:30]}  Rd2 {[%clk 0:00:32]} 51. Rxd2 {[%clk 0:00:29]}  cxd2 {[%clk 0:00:32]} 52. Qd3 {[%clk 0:00:30]}  Ne6 {[%clk 0:00:31]} 53. Qxd2 {[%clk 0:00:30]}  Kh6 {[%clk 0:00:31]} 54. Kf2 {[%clk 0:00:30]}  Qf6 {[%clk 0:00:31]} 55. Qe3 {[%clk 0:00:29]}  Kg6 {[%clk 0:00:31]} 56. Bd5 {[%clk 0:00:27]}  Qb2+ {[%clk 0:00:30]} 57. Kg1 {[%clk 0:00:26]}  Qb1+ {[%clk 0:00:29]} 58. Kh2 {[%clk 0:00:24]}  Qb2+ {[%clk 0:00:29]} 59. Kh3 {[%clk 0:00:23]}  Qh8+ {[%clk 0:00:29]} 60. Kg2 {[%clk 0:00:22]}  Qb2+ {[%clk 0:00:29]} 61. Qf2 {[%clk 0:00:22]}  Qxf2+ {[%clk 0:00:28]} 62. Kxf2 {[%clk 0:00:22]}  Nd4 {[%clk 0:00:28]} 63. Ke3 {[%clk 0:00:22]}  Nc2+ {[%clk 0:00:29]} 64. Kf2 {[%clk 0:00:20]}  Kf6 {[%clk 0:00:29]} 65. Bc4 {[%clk 0:00:20]}  Na3 {[%clk 0:00:27]} 66. Bd3 {[%clk 0:00:20]}  Ke6 {[%clk 0:00:27]} 67. Ke3 {[%clk 0:00:21]}  Kf6 {[%clk 0:00:27]} 68. Kd4 {[%clk 0:00:21]}  Ke6 {[%clk 0:00:27]} 69. Kc3 {[%clk 0:00:22]}  Kd5 {[%clk 0:00:27]} 70. Bxf5 {[%clk 0:00:22]}  Nb5+ {[%clk 0:00:27]} 71. Kd3 {[%clk 0:00:23]}  Nd6 {[%clk 0:00:27]} 72. Bd7 {[%clk 0:00:21]}  Ne4 {[%clk 0:00:26]} 73. Bc6+ {[%clk 0:00:21]}  Kxc6 {[%clk 0:00:26]} 74. Kxe4 {[%clk 0:00:22]}  Kd6 {[%clk 0:00:27]} 75. Kf5 {[%clk 0:00:23]}  Ke7 {[%clk 0:00:00]} 76. Kg6 {[%clk 0:00:24]} 1-0


[Site "https://www.chess.com"]

[Event "Titled Tuesday Blitz June 27 Early 2023"]
[White "Mardov, Dimitar"]
[Black "Kumsiashvili, Nikoloz"]
[WhiteFideId "30919495"]
[BlackFideId "13600621"]
[WhiteElo "2838"]
[BlackElo "2595"]
[Result "1-0"]
[Round "3"]
[TimeControl "180+2"]
[Date "2023.06.27"]
[WhiteClock "0:00:06"]
[BlackClock "0:00:06"]
[Board "44"]

1. d4 {[%clk 0:03:00]}  Nf6 {[%clk 0:02:59]} 2. c4 {[%clk 0:02:58]}  c5 {[%clk 0:03:00]} 3. d5 {[%clk 0:02:58]}  b5 {[%clk 0:03:00]} 4. cxb5 {[%clk 0:02:58]}  a6 {[%clk 0:03:01]} 5. bxa6 {[%clk 0:02:59]}  g6 {[%clk 0:03:01]} 6. Nc3 {[%clk 0:02:59]}  Bg7 {[%clk 0:03:01]} 7. e4 {[%clk 0:02:59]}  O-O {[%clk 0:03:02]} 8. e5 {[%clk 0:02:56]}  Ne8 {[%clk 0:03:02]} 9. Nf3 {[%clk 0:02:57]}  d6 {[%clk 0:03:02]} 10. exd6 {[%clk 0:02:56]}  Nxd6 {[%clk 0:03:00]} 11. Be2 {[%clk 0:02:56]}  Nxa6 {[%clk 0:02:56]} 12. O-O {[%clk 0:02:55]}  Nb4 {[%clk 0:02:56]} 13. a3 {[%clk 0:02:55]}  Bf5 {[%clk 0:02:53]} 14. Bf4 {[%clk 0:02:43]}  Nc2 {[%clk 0:02:44]} 15. Rc1 {[%clk 0:02:44]}  Nd4 {[%clk 0:02:44]} 16. Nxd4 {[%clk 0:02:37]}  cxd4 {[%clk 0:02:43]} 17. Nb5 {[%clk 0:02:37]}  d3 {[%clk 0:02:00]} 18. Bxd3 {[%clk 0:02:07]}  Nxb5 {[%clk 0:01:59]} 19. Bxb5 {[%clk 0:02:03]}  Bxb2 {[%clk 0:01:59]} 20. Rc7 {[%clk 0:01:48]}  Rxa3 {[%clk 0:01:40]} 21. Qd2 {[%clk 0:01:32]}  Bg7 {[%clk 0:01:13]} 22. Rfc1 {[%clk 0:01:15]}  Ra1 {[%clk 0:01:03]} 23. Rxa1 {[%clk 0:01:12]}  Bxa1 {[%clk 0:01:03]} 24. Rc1 {[%clk 0:01:01]}  Bg7 {[%clk 0:01:02]} 25. h3 {[%clk 0:00:59]}  Qb6 {[%clk 0:00:57]} 26. Bc6 {[%clk 0:00:57]}  Rd8 {[%clk 0:00:51]} 27. Be3 {[%clk 0:00:56]}  Qb2 {[%clk 0:00:49]} 28. Qa5 {[%clk 0:00:53]}  Qb8 {[%clk 0:00:41]} 29. Bf4 {[%clk 0:00:44]}  Qc8 {[%clk 0:00:25]} 30. Bb7 {[%clk 0:00:30]}  Qd7 {[%clk 0:00:11]} 31. Rc7 {[%clk 0:00:30]}  Qe8 {[%clk 0:00:11]} 32. Bc6 {[%clk 0:00:31]}  Qf8 {[%clk 0:00:11]} 33. Qa7 {[%clk 0:00:26]}  Bf6 {[%clk 0:00:11]} 34. Be3 {[%clk 0:00:24]}  Rc8 {[%clk 0:00:11]} 35. Bc5 {[%clk 0:00:19]}  Rxc7 {[%clk 0:00:11]} 36. Qxc7 {[%clk 0:00:20]}  Kg7 {[%clk 0:00:10]} 37. Qa7 {[%clk 0:00:12]}  Qd8 {[%clk 0:00:09]} 38. g3 {[%clk 0:00:11]}  h5 {[%clk 0:00:09]} 39. h4 {[%clk 0:00:11]}  Be4 {[%clk 0:00:08]} 40. Qb7 {[%clk 0:00:09]}  Bf5 {[%clk 0:00:08]} 41. Qb4 {[%clk 0:00:09]}  Kg8 {[%clk 0:00:07]} 42. Qf4 {[%clk 0:00:09]}  Kg7 {[%clk 0:00:06]} 43. Be3 {[%clk 0:00:08]}  Kg8 {[%clk 0:00:05]} 44. Qc4 {[%clk 0:00:08]}  Qd6 {[%clk 0:00:05]} 45. Kh2 {[%clk 0:00:07]}  Bg4 {[%clk 0:00:04]} 46. Bf4 {[%clk 0:00:07]}  Qd8 {[%clk 0:00:04]} 47. Qe4 {[%clk 0:00:07]}  Bf5 {[%clk 0:00:03]} 48. Qe3 {[%clk 0:00:08]}  Kg7 {[%clk 0:00:04]} 49. Bh6+ {[%clk 0:00:08]}  Kg8 {[%clk 0:00:04]} 50. Bf4 {[%clk 0:00:09]}  Kg7 {[%clk 0:00:05]} 51. Qc5 {[%clk 0:00:08]}  Kg8 {[%clk 0:00:05]} 52. Bb5 {[%clk 0:00:09]}  Kg7 {[%clk 0:00:04]} 53. Bc4 {[%clk 0:00:09]}  Kg8 {[%clk 0:00:04]} 54. Qe3 {[%clk 0:00:08]}  Qd7 {[%clk 0:00:04]} 55. Qb6 {[%clk 0:00:07]}  Kg7 {[%clk 0:00:04]} 56. Qb8 {[%clk 0:00:07]}  Be4 {[%clk 0:00:03]} 57. d6 {[%clk 0:00:04]}  exd6 {[%clk 0:00:03]} 58. Bxd6 {[%clk 0:00:05]}  Be7 {[%clk 0:00:02]} 59. Be5+ {[%clk 0:00:04]}  Bf6 {[%clk 0:00:02]} 60. Bxf6+ {[%clk 0:00:04]}  Kxf6 {[%clk 0:00:03]} 61. Qh8+ {[%clk 0:00:04]}  Kf5 {[%clk 0:00:03]} 62. Qc3 {[%clk 0:00:02]}  f6 {[%clk 0:00:03]} 63. Qe3 {[%clk 0:00:02]}  g5 {[%clk 0:00:03]} 64. Be2 {[%clk 0:00:02]}  g4 {[%clk 0:00:03]} 65. Qf4+ {[%clk 0:00:02]}  Kg6 {[%clk 0:00:03]} 66. Qxe4+ {[%clk 0:00:03]}  f5 {[%clk 0:00:04]} 67. Qe5 {[%clk 0:00:03]}  Qc6 {[%clk 0:00:04]} 68. Qf4 {[%clk 0:00:03]}  Qd5 {[%clk 0:00:03]} 69. Qe3 {[%clk 0:00:04]}  Kf7 {[%clk 0:00:04]} 70. Bf1 {[%clk 0:00:04]}  Qe4 {[%clk 0:00:04]} 71. Qxe4 {[%clk 0:00:04]}  fxe4 {[%clk 0:00:05]} 72. Bc4+ {[%clk 0:00:04]}  Kf6 {[%clk 0:00:05]} 73. Kg2 {[%clk 0:00:05]}  Ke5 {[%clk 0:00:06]} 74. Bf7 {[%clk 0:00:05]}  Kd4 {[%clk 0:00:06]} 75. Bxh5 {[%clk 0:00:06]} 1-0


[Site "https://www.chess.com"]